[Event "Israeli Championship 2022"]
[Site "Yosiah Arad"]
[Date "2022.12.09"]
[Round "5.14"]
[White "Kupervaser, Erez"]
[Black "Barak, Gil"]
[Result "1-0"]
[ECO "C45"]
[WhiteElo "2331"]
[BlackElo "2147"]
[Annotator "TA"]
[PlyCount "113"]
[EventDate "2022.12.05"]
[EventType "swiss"]
[EventCountry "ISR"]
[SourceTitle "playchess.com"]
[Source "ChessBase"]
[SourceQuality "1"]
[TimeControl "40/5400+30:1800+30"]

{[%evp 9,113,29,25,28,26,0,10,8,12,18,17,-25,17,-12,0,-10,-1,0,1,-27,-7,-10,14,7,12,16,33,25,19,16,28,29,40,40,45,40,39,37,45,42,85,53,56,51,56,52,60,60,67,63,60,58,74,73,69,77,85,85,89,55,60,24,25,7,59,59,78,78,85,85,484,483,468,318,583,575,481,350,649,688,1615,1614,1576,1576,1417,1213,1272,1218,1155,1106,2460,2350,12830,6666,29976,29977,29979,29977,29980,29981,29981,29982,29983,29984,29981,29982]} 1. e4 {[%emt 0:00:03]} e5 {[%emt 0:00:04]} 2. Nf3 {[%emt 0:00:04]} Nc6 {[%emt 0:00:03]} 3. d4 {[%emt 0:00:07]} exd4 {[%emt 0:00:04]} 4. Nxd4 {[%emt 0:00:05]} d6 {[%emt 0:00:19]} 5. Nxc6 {[%emt 0:05:28]} bxc6 {[%emt 0:00:08]} 6. Be3 {[%emt 0:00:29] C45: Scotch Game.} Nf6 {[%emt 0:01:48] [#]} 7. Nd2 $146 {[%emt 0:02:16]} ({Predecessor:} 7. Nc3 Be6 8. Ba6 Rb8 9. b3 c5 10. Bb5+ Bd7 11. Bxd7+ Qxd7 12. f3 g6 13. Nd5 Bg7 {½-½ (42) Cortes,M (1718)-Castro,D (1526) Mosquera 2014}) 7... Be7 {[%emt 0:03:28]} 8. Be2 {[%emt 0:02:29] The position is equal.} O-O {[%emt 0:01:31]} 9. O-O {[%emt 0:00:40]} Re8 {[%emt 0:06:32]} 10. c4 {[%emt 0:03:57]} h6 {[%emt 0:13:30]} 11. h3 {[%emt 0:06:11]} Bf8 {[%emt 0:03:10]} 12. Qc2 {[%emt 0:02:50]} c5 {[%emt 0:09:49]} 13. Bd3 {[%emt 0:04:38]} Bb7 {[%emt 0:02:15]} 14. Rfe1 {[%emt 0:01:41]} Bc6 {[%emt 0:01:25]} 15. Rad1 {[%emt 0:01:55]} Qc8 {[%emt 0:01:21]} 16. f3 {[%emt 0:04:38]} Qb7 {[%emt 0:05:52]} 17. Nb1 {[%emt 0:00:45]} Rab8 {[%emt 0:02:16]} 18. b3 {[%emt 0:00:23]} Nd7 {[%emt 0:03:25]} 19. Nc3 {[%emt 0:01:18]} Be7 {[%emt 0:03:15]} 20. Qf2 {[%emt 0:04:49]} Ne5 {[%emt 0:05:53]} 21. Bc2 {[%emt 0:03:35]} Bf6 {[%emt 0:05:02][%cal Oe5c4]} 22. Nd5 {[%emt 0:05:03]} Bxd5 {[%emt 0:00:54]} 23. exd5 {[%emt 0:00:06]} Ng6 {[%emt 0:01:53]} 24. Qd2 {[%emt 0:03:42]} Re7 {[%emt 0:07:03]} 25. Bf2 {[%emt 0:07:46]} Rbe8 {[%emt 0:03:45]} 26. Kf1 {[%emt 0:01:35]} Qb8 {[%emt 0:03:56]} 27. Rxe7 {[%emt 0:00:21]} Rxe7 {[%emt 0:00:22]} 28. Re1 {[%emt 0:00:12]} Qe8 {[%emt 0:01:25]} 29. Rxe7 {[%emt 0:02:31] White is more active.} Qxe7 {[%emt 0:00:26]} 30. Qe2 {[%emt 0:05:18]} Qxe2+ {[%emt 0:01:18]} 31. Kxe2 $14 {[%emt 0:00:02][%mdl 4096] Endgame KBB-KBN} Nf4+ {[%emt 0:00:45]} 32. Kf1 {[%emt 0:00:06]} Bc3 {[%emt 0:07:54]} 33. Be3 {[%emt 0:01:27]} g5 {[%emt 0:01:39]} 34. g3 {[%emt 0:09:25]} Nh5 {[%emt 0:00:51]} 35. Bf2 {[%emt 0:02:27]} Kg7 $1 {[%emt 0:00:43]} 36. Bd1 {[%emt 0:03:56][%cal Of3f4]} f5 {[%emt 0:01:42] Prevents f4.} (36... Kg6 $1 $11) 37. f4 {[%emt 0:01:44]} Nf6 {[%emt 0:01:19]} 38. fxg5 {[%emt 0:00:29]} hxg5 {[%emt 0:00:06] [#]} 39. Bc2 $1 {[%emt 0:00:11]} Ne4 $2 {[%emt 0:02:17][%mdl 8192] Loses the game.} (39... g4 $16) 40. Bxe4 $18 {[%emt 0:00:34]} fxe4 {[%emt 0:00:01] KB-KB} 41. Be1 {[%emt 0:35:02]} Bd4 {[%emt 0:26:38]} (41... Bf6 42. Ke2 Bd4) 42. Ba5 {[%emt 0:00:00]} Kf6 {[%emt 0:00:50]} 43. Bxc7 {[%emt 0:00:00]} g4 $2 {[%emt 0:01:28]} (43... Be5 44. g4 Ke7) 44. hxg4 {[%emt 0:00:00]} ({Not} 44. Bxd6 gxh3 45. Bf4 (45. g4 Kg5 $15) 45... h2 $17) 44... Be5 {[%emt 0:01:24]} 45. Bd8+ {[%emt 0:00:00]} Kf7 {[%emt 0:01:51]} 46. Ke2 {[%emt 0:00:00]} Bd4 {[%emt 0:01:50]} 47. Ba5 {[%emt 0:00:00]} Kf6 {[%emt 0:00:00]} 48. Bd2 {[%emt 0:00:00]} Ke7 {[%emt 0:00:00]} 49. a3 {[%emt 0:00:00]} Bb2 {[%emt 0:00:51]} 50. Ke3 {[%emt 0:00:00]} Bxa3 {[%emt 0:00:14]} 51. Kxe4 {[%emt 0:00:00] [#] Kf5 would kill now.} Bb2 {[%emt 0:00:26]} 52. Kf5 {[%emt 0:00:00] White mates.} Bd4 {[%emt 0:00:53]} 53. Bg5+ {[%emt 0:00:00]} Kf7 {[%emt 0:00:11]} 54. Bf4 {[%emt 0:00:00]} Ke7 {[%emt 0:00:05]} 55. Kg6 {[%emt 0:00:00]} a6 {[%emt 0:00:21]} 56. g5 {[%emt 0:00:00]} Bc3 {[%emt 0:01:19]} 57. Kh7 {[%emt 0:00:00] Weighted Error Value: White=0.10 (very precise) /Black=0.36} 1-0

[Event "Israeli Championship 2022"]
[Site "Yosiah Arad"]
[Date "2022.12.09"]
[Round "5.15"]
[White "Poleg, Matan"]
[Black "Ben-Menachem, Itzhak"]
[Result "1/2-1/2"]
[ECO "D21"]
[WhiteElo "2291"]
[BlackElo "2291"]
[Annotator "TA"]
[PlyCount "40"]
[EventDate "2022.12.05"]
[EventType "swiss"]
[EventCountry "ISR"]
[SourceTitle "playchess.com"]
[Source "ChessBase"]
[SourceQuality "1"]
[TimeControl "40/5400+30:1800+30"]

{[%evp 9,40,0,-5,-14,0,-23,-3,-30,-25,-37,-41,-41,-40,-26,-27,-39,0,0,0,0,8,0,0,0,0,0,0,0,10,0,0,-25,0]} 1. d4 {[%emt 0:00:15]} d5 {[%emt 0:00:06][%cal Bd7d5,Bd5c4][%mdl 32]} 2. c4 {[%emt 0:00:32]} dxc4 {[%emt 0:00:03]} 3. Nf3 {[%emt 0:00:52]} c5 {[%emt 0:00:06]} 4. e3 {[%emt 0:00:19]} cxd4 {[%emt 0:00:08]} 5. exd4 {[%emt 0:00:54]} Be6 {[%emt 0:00:07][%cal Bc8e6,Be6d5,Bd5c6][%mdl 32]} 6. Na3 {[%emt 0:10:21][%cal Bb1a3,Ba3c4,Bc4e5][%mdl 32] D21: Queen's Gambit Accepted: 3 Nf3 sidelines.} Nc6 {[%emt 0:05:26]} ({Resist} 6... Qa5+ 7. Bd2 Qa6 8. Ng5 $16) 7. Nxc4 {[%emt 0:00:39]} Bd5 {[%emt 0:06:38]} 8. Nce5 {[%emt 0:03:06] The position is equal.} e6 {[%emt 0:04:56] [#]} 9. a3 $146 {[%emt 0:02:38]} ({Predecessor:} 9. Be2 Bb4+ 10. Bd2 Bxd2+ 11. Qxd2 Nf6 12. O-O Bxf3 13. Nxf3 O-O 14. Rfd1 Qd5 15. b4 {½-½ (41) Schaefer,M (2215)-Polgar,Z (2550) Wiesbaden 1994}) 9... Bd6 {[%emt 0:02:57]} 10. Nxc6 {[%emt 0:01:45]} Bxc6 {[%emt 0:04:39]} 11. Bd3 {[%emt 0:01:34]} Qa5+ {[%emt 0:07:29]} 12. Bd2 {[%emt 0:01:10]} Qh5 {[%emt 0:00:22]} 13. Ne5 $1 {[%emt 0:03:32]} Qxd1+ {[%emt 0:02:26]} 14. Rxd1 {[%emt 0:00:02]} Bd5 {[%emt 0:09:07]} 15. Bb5+ {[%emt 0:03:31]} Ke7 {[%emt 0:12:01]} 16. Nc4 {[%emt 0:02:52]} Bxc4 {[%emt 0:00:34]} 17. Bxc4 {[%emt 0:00:08]} Nf6 {[%emt 0:00:46]} 18. Ke2 {[%emt 0:07:09]} Rac8 {[%emt 0:00:57][%cal Ba8c8,Bc8c6,Bc6b6][%mdl 32]} 19. Bb3 {[%emt 0:00:19]} Rc6 {[%emt 0:02:30]} 20. Bg5 {[%emt 0:02:33]} Rb6 {[%emt 0:02:42] Weighted Error Value: White=0.07 (flawless) /Black=0.06 (flawless)} 1/2-1/2

[Event "Israeli Championship 2022"]
[Site "Yosiah Arad"]
[Date "2022.12.10"]
[Round "6.1"]
[White "Gorshtein, Ido"]
[Black "Kochavi, Ori"]
[Result "1/2-1/2"]
[ECO "A25"]
[WhiteElo "2469"]
[BlackElo "2326"]
[Annotator "TA"]
[PlyCount "40"]
[EventDate "2022.12.05"]
[EventType "swiss"]
[EventCountry "ISR"]
[SourceTitle "playchess.com"]
[Source "ChessBase"]
[SourceQuality "1"]
[TimeControl "40/5400+30:1800+30"]

{[%evp 12,40,11,8,3,4,1,4,23,21,21,13,33,30,29,5,36,0,0,-22,0,-7,16,-23,0,0,0,0,-24,-48,-56]} 1. c4 {[%emt 0:00:03]} e5 {[%emt 0:00:22]} 2. g3 {[%emt 0:00:03]} Nc6 {[%emt 0:00:12]} 3. Bg2 {[%emt 0:00:08]} g6 {[%emt 0:00:02]} 4. Nc3 {[%emt 0:02:05]} Bg7 {[%emt 0:00:20]} 5. d3 {[%emt 0:00:28]} d6 {[%emt 0:00:48]} 6. Rb1 {[%emt 0:00:51]} a5 $1 {[%emt 0:00:06] 6...a5 is better than 6...f5.} 7. e3 {[%emt 0:04:22]} Nge7 {[%emt 0:05:36] A25: English Opening vs King's Indian with ...Nc6 but without early d3.} 8. Nge2 {[%emt 0:00:23]} h5 {[%emt 0:00:05]} 9. h3 {[%emt 0:05:31]} h4 {[%emt 0:04:11] The position is equal.} 10. g4 {[%emt 0:00:24]} f5 11. gxf5 {[%emt 0:01:37]} gxf5 {[%emt 0:03:43]} 12. Rg1 {[%emt 0:04:51] [#] Bxc6+ is the strong threat.} Rg8 {[%emt 0:24:40]} 13. Nd5 {[%emt 0:03:20]} Be6 {[%emt 0:01:24]} 14. Nec3 {[%emt 0:05:51]} Bf7 {[%emt 0:09:28] [#]} 15. Kf1 $146 {[%emt 0:06:14]} ({Predecessor:} 15. a3 Qd7 16. Bd2 Nd8 17. Bf3 Kf8 18. Bh5 Nc8 19. Bxf7 Qxf7 20. e4 f4 21. Rg5 {1-0 (55) Obukhov,A (2375)-Bogdanovski,V (2425) Prilep 1992}) 15... Bh8 {[%emt 0:09:03]} 16. a3 {[%emt 0:01:41]} Nxd5 {[%emt 0:07:48]} 17. Nxd5 {[%emt 0:05:56]} Kf8 {[%emt 0:00:16]} 18. Bd2 {[%emt 0:05:12]} Nb8 {[%emt 0:01:20]} 19. b4 {[%emt 0:11:56]} c6 {[%emt 0:00:28]} 20. Nc3 {[%emt 0:03:56]} axb4 $1 {[%emt 0:00:37] Weighted Error Value: White=0.12 (very precise) /Black=0.10 (very precise)} 1/2-1/2

[Event "Israeli Championship 2022"]
[Site "Yosiah Arad"]
[Date "2022.12.10"]
[Round "6.2"]
[White "Parkhov, Yair"]
[Black "Boruchovsky, Avital"]
[Result "1/2-1/2"]
[ECO "D35"]
[WhiteElo "2470"]
[BlackElo "2552"]
[Annotator "TA"]
[PlyCount "57"]
[EventDate "2022.12.05"]
[EventType "swiss"]
[EventCountry "ISR"]
[SourceTitle "playchess.com"]
[Source "ChessBase"]
[SourceQuality "1"]
[TimeControl "40/5400+30:1800+30"]

{[%evp 13,57,10,18,6,13,9,14,22,24,4,6,10,12,0,0,0,60,52,51,71,58,41,60,21,170,160,174,168,178,160,193,202,191,189,198,171,249,237,274,217,265,170,169,141,133,0]} 1. d4 {[%emt 0:00:02]} Nf6 {[%emt 0:00:21]} 2. c4 {[%emt 0:00:06]} e6 {[%emt 0:00:04]} 3. Nc3 {[%emt 0:00:03]} d5 {[%emt 0:00:08]} 4. cxd5 {[%emt 0:00:06]} exd5 {[%emt 0:00:04]} 5. Bg5 {[%emt 0:00:07]} c6 {[%emt 0:00:05]} 6. e3 {[%emt 0:00:05]} Bd6 {[%emt 0:00:05]} 7. Bd3 {[%emt 0:00:10]} O-O {[%emt 0:00:09]} 8. Nf3 {[%emt 0:00:43] D35: Queen's Gambit Declined: Exchange Variation.} Re8 {[%emt 0:00:08]} 9. O-O {[%emt 0:01:56][%cal Oe3e4]} Bg4 {[%emt 0:00:43] Against e4} 10. Qb3 {[%emt 0:03:18] The position is equal.} Na6 {[%emt 0:00:12] [#]} 11. Rac1 $146 {[%emt 0:24:25]} (11. Qxb7 Nb4 12. Bxh7+ (12. Ne5 $2 Re7 $17) 12... Kxh7 13. Qxf7 Rf8 14. Bxf6 Qxf6 15. Qxf6 Rxf6 $17) ({Predecessor:} 11. a3 Rb8 12. Ne5 Bxe5 13. dxe5 Rxe5 14. Bf4 Nc5 15. Qc2 Rh5 16. Bxb8 Qxb8 17. f4 {½-½ (40) So,W (2778)-Shankland,S (2704) Berlin 2022}) 11... Bxf3 {[%emt 0:09:19]} 12. gxf3 {[%emt 0:00:07]} Nc7 {[%emt 0:00:43]} 13. Bh4 {[%emt 0:05:15]} Qd7 {[%emt 0:12:49]} 14. Ne2 {[%emt 0:03:54]} (14. Qxb7 $2 Reb8 $19) 14... Nh5 {[%emt 0:00:06]} ({Black should play} 14... Qh3 $11 15. Bg3 Bxg3 16. hxg3 Ne6) 15. Qxb7 $14 {[%emt 0:17:04]} c5 {[%emt 0:00:43]} ({Less strong is} 15... Qh3 16. Bg3 (16. Qxc6 $2 Qxh2#) 16... Reb8 17. Qxc6 Nxg3 18. hxg3 $18 (18. Nxg3 Rb6 $16)) 16. dxc5 {[%emt 0:05:31]} Reb8 {[%emt 0:00:13] [#]} 17. Qxa8 {[%emt 0:05:01]} Rxa8 {[%emt 0:09:52]} 18. cxd6 {[%emt 0:00:07] The board is on fire.} Ne8 {[%emt 0:00:03] [#] This move loses the game for Black.} (18... Qxd6 $11 19. Ng3 Qb4) 19. Rc5 $1 $18 {[%emt 0:03:00] Hoping for Rfc1.} Qxd6 {[%emt 0:22:48]} 20. Rfc1 {[%emt 0:00:08] Black must now prevent Rc8.} g6 {[%emt 0:02:56]} 21. b4 {[%emt 0:00:21]} Qd7 {[%emt 0:05:24]} 22. Bb5 {[%emt 0:08:55] Against Qa4} Qh3 {[%emt 0:00:06]} 23. Bg3 {[%emt 0:00:05]} Nef6 {[%emt 0:00:20]} 24. a4 {[%emt 0:00:37][%cal Ba2a4,Ba4a5][%mdl 32]} Nxg3 {[%emt 0:02:44]} (24... Qe6 {was worth a try.} 25. Rc6 (25. Nd4 Qe7 $16) 25... Qe7) 25. hxg3 {[%emt 0:00:27]} Qe6 {[%emt 0:00:02]} 26. a5 {[%emt 0:05:05]} h5 {[%emt 0:04:22]} 27. Bc6 {[%emt 0:02:10]} Rb8 {[%emt 0:01:05]} 28. Nf4 {[%emt 0:07:49][%csl LRd5,LRe6]} Qd6 {[%emt 0:00:07]} 29. b5 {[%emt 0:04:36] Weighted Error Value: White=0.10 (very precise) /Black=0.21 (precise)} (29. Bxd5 $16 Kg7 30. Rc6) 1/2-1/2

[Event "Israeli Championship 2022"]
[Site "Yosiah Arad"]
[Date "2022.12.10"]
[Round "6.3"]
[White "Bronstein, Or"]
[Black "Kobo, Ori"]
[Result "1-0"]
[ECO "D11"]
[WhiteElo "2442"]
[BlackElo "2554"]
[Annotator "TA"]
[PlyCount "92"]
[EventDate "2022.12.05"]
[EventType "swiss"]
[EventCountry "ISR"]
[SourceTitle "playchess.com"]
[Source "ChessBase"]
[SourceQuality "1"]
[TimeControl "40/5400+30:1800+30"]

{[%evp 9,92,16,35,21,25,21,19,16,14,0,21,20,28,22,26,21,47,47,38,45,37,27,39,43,41,55,56,41,51,46,43,51,51,57,72,83,84,85,94,86,106,102,109,102,122,114,108,113,126,70,120,122,122,118,150,146,149,130,131,118,314,321,318,303,424,387,503,512,445,344,577,561,526,516,466,423,892,681,876,861,907,930,941,906,2340]} 1. d4 {[%emt 0:00:07]} Nf6 {[%emt 0:00:07]} 2. c4 {[%emt 0:00:12]} c6 {[%emt 0:00:18]} 3. Nf3 {[%emt 0:01:44]} d5 {[%emt 0:00:06]} 4. e3 {[%emt 0:01:36]} Bg4 {[%emt 0:00:13]} 5. h3 {[%emt 0:04:00]} Bh5 {[%emt 0:00:22]} 6. g4 {[%emt 0:00:05] D11: Slav Defence: 3 Nf3 sidelines and 3...Nf6 4 e3 Bg4.} Bg6 {[%emt 0:00:07]} 7. Ne5 {[%emt 0:00:08]} Nbd7 {[%emt 0:01:09]} 8. Nxg6 {[%emt 0:03:13] The position is equal.} hxg6 {[%emt 0:00:15]} 9. Bg2 {[%emt 0:00:42] Recently 9.cxd5 got a lot of attention.} dxc4 {[%emt 0:10:11]} 10. Nd2 {[%emt 0:00:51]} e5 {[%emt 0:01:04]} 11. Nxc4 {[%emt 0:01:48]} exd4 {[%emt 0:09:07]} 12. Qxd4 {[%emt 0:21:42] [#]} Bb4+ $146 {[%emt 0:04:49]} ({Predecessor:} 12... Nc5 13. Qxd8+ Rxd8 14. Ke2 Nfe4 15. Nd2 f5 16. gxf5 gxf5 17. Nxe4 Nxe4 18. Bxe4 fxe4 {½-½ (60) Bok,B (2611)-Sandipan,C (2577) Moscow 2016}) 13. Bd2 {[%emt 0:01:12]} Bxd2+ {[%emt 0:00:38]} 14. Qxd2 {[%emt 0:00:51]} O-O $1 {[%emt 0:00:24]} 15. O-O-O {[%emt 0:09:41]} Nb6 {[%emt 0:09:29]} 16. Qxd8 {[%emt 0:13:06]} Raxd8 {[%emt 0:00:37]} 17. Na5 {[%emt 0:08:42]} Rb8 {[%emt 0:02:56]} 18. g5 {[%emt 0:00:47]} Nfd5 {[%emt 0:11:37]} 19. h4 {[%emt 0:00:11]} Rfe8 {[%emt 0:02:11]} 20. a3 {[%emt 0:09:40]} Re5 {[%emt 0:06:16][%cal Od5e3]} 21. b4 {[%emt 0:02:28]} Na4 {[%emt 0:07:51]} 22. Kc2 {[%emt 0:02:46]} Nac3 {[%emt 0:05:27]} 23. Rd4 {[%emt 0:01:00]} Nb5 {[%emt 0:12:56]} 24. Rd3 {[%emt 0:00:12]} Nbc7 {[%emt 0:02:30]} 25. Rhd1 {[%emt 0:03:14]} Re6 {[%emt 0:03:59]} 26. Kb3 {[%emt 0:00:54]} f5 {[%emt 0:05:30]} 27. gxf6 {[%emt 0:06:34]} Rxf6 {[%emt 0:00:21]} 28. R1d2 {[%emt 0:01:00]} Kh7 {[%emt 0:01:18]} 29. f4 {[%emt 0:01:34]} (29. Nc4 $16) 29... Re8 {[%emt 0:02:04] [#]} ({Black should play} 29... Nb6 $14) 30. Nc4 $1 $16 {[%emt 0:00:28]} ({Much weaker is} 30. Nxb7 $6 Rxe3 31. Rxe3 Nxe3 $11) 30... Rfe6 {[%emt 0:00:30][%cal Rd5e3]} 31. Ne5 {[%emt 0:01:15]} Rxe5 {[%emt 0:00:04]} 32. fxe5 {[%emt 0:00:04]} Rxe5 {[%emt 0:00:04]} 33. e4 {[%emt 0:05:13]} Nf6 {[%emt 0:00:22]} 34. Rd8 {[%emt 0:00:00]} Nxe4 $2 {[%emt 0:01:56] This move loses the game for Black.} (34... Ne6 $16) 35. Bxe4 $18 {[%emt 0:00:00]} Rxe4 $16 {[%emt 0:00:01][%mdl 4096] Endgame KRR-KRN} 36. Rb8 {[%emt 0:00:00] [#] aiming for Rdd8.} ({Don't take} 36. R8d7 Re3+ 37. Kb2 Nb5 38. Rxb7 Nxa3) 36... Re3+ {[%emt 0:01:03]} 37. Kb2 {[%emt 0:00:14] And now Rdd8 would win.} Nd5 {[%emt 0:00:33]} 38. Rxb7 {[%emt 0:00:12]} a6 {[%emt 0:00:26]} 39. Rf2 {[%emt 0:00:46] Threatens to win with Rff7.} Kh6 $2 {[%emt 0:00:33]} (39... Rh3 {is a better defense.} 40. Rc2 Rxh4 41. Rxc6 Rh2+ 42. Kc1 Rh1+ 43. Kd2 g5 44. Rxa6 Rh2+ 45. Ke1 Nf4) 40. Rf8 $18 {[%emt 0:01:02][%cal Rf8h8] White is clearly winning.} Re2+ {[%emt 0:00:16]} 41. Kb3 {[%emt 0:30:27][%cal Rf8h8]} Re3+ {[%emt 0:05:01]} 42. Kc4 {[%emt 0:00:00][%cal Rf8h8]} Rc3+ {[%emt 0:00:32]} (42... g5 $142 43. hxg5+ Kg6) 43. Kd4 {[%emt 0:00:00][%cal Rf8h8]} Kh5 {[%emt 0:02:45]} 44. Rxg7 {[%emt 0:00:00]} Rxa3 {[%emt 0:00:09]} 45. Rh8+ {[%emt 0:00:00]} Kg4 {[%emt 0:00:02]} 46. Rxg6+ {[%emt 0:00:00]} Kf5 {[%emt 0:00:20] Weighted Error Value: White=0.09 (flawless) /Black=0.32} 1-0

[Event "Israeli Championship 2022"]
[Site "Yosiah Arad"]
[Date "2022.12.10"]
[Round "6.4"]
[White "Erenberg, Ariel"]
[Black "Levitan, Tal"]
[Result "1-0"]
[ECO "A13"]
[WhiteElo "2514"]
[BlackElo "2243"]
[Annotator "TA"]
[PlyCount "61"]
[EventDate "2022.12.05"]
[EventType "swiss"]
[EventCountry "ISR"]
[SourceTitle "playchess.com"]
[Source "ChessBase"]
[SourceQuality "1"]
[TimeControl "40/5400+30:1800+30"]

{[%evp 14,61,37,31,26,26,35,28,27,34,31,20,27,23,11,10,30,48,39,37,56,55,74,72,266,255,229,213,375,372,360,374,554,557,551,554,515,510,554,560,546,450,781,770,731,718,897,883,757,739]} 1. c4 {[%emt 0:00:02]} e6 {[%emt 0:00:08]} 2. g3 {[%emt 0:00:06]} d5 {[%emt 0:00:14]} 3. Bg2 {[%emt 0:00:05]} dxc4 {[%emt 0:00:06]} 4. Qa4+ {[%emt 0:00:05]} Nd7 {[%emt 0:00:07]} 5. Qxc4 {[%emt 0:00:15]} a6 {[%emt 0:00:04]} 6. Qc2 {[%emt 0:00:15]} Ngf6 {[%emt 0:00:06] 6...Rb8 is vanishing.} 7. Nf3 {[%emt 0:00:57]} c5 {[%emt 0:00:04]} 8. Nc3 {[%emt 0:00:08] is the new trend.} Qc7 {[%emt 0:00:04] A13: English Opening: 1...e6.} 9. O-O {[%emt 0:02:45]} b6 {[%emt 0:00:05]} 10. d4 {[%emt 0:00:08]} Bb7 {[%emt 0:00:05] White has an edge.} 11. Bf4 {[%emt 0:18:46]} Bd6 {[%emt 0:00:05]} 12. Bxd6 {[%emt 0:00:03]} Qxd6 {[%emt 0:00:04]} 13. Rfd1 $36 {[%emt 0:00:11][%mdl 2048] White has some pressure.} O-O {[%emt 0:04:29]} 14. e4 {[%emt 0:00:32] e5 is the strong threat.} cxd4 {[%emt 0:01:20]} 15. Nxd4 {[%emt 0:00:07][%cal Oe4e5]} Qc7 {[%emt 0:00:21] Prevents e5.} 16. Rac1 {[%emt 0:00:27]} Rac8 {[%emt 0:05:20]} 17. f4 {[%emt 0:13:03]} e5 {[%emt 0:34:51] [#]} 18. Nf5 {[%emt 0:00:10] [#]} Ng4 $146 {[%emt 0:00:26] [#] This move loses the game for Black.} (18... Kh8 $16 {keeps fighting.}) ({Predecessor:} 18... Nc5 19. Nd5 Nxd5 20. exd5 Qd7 21. fxe5 Na4 22. Qe4 g6 23. Nh6+ Kg7 24. Qf4 f5 25. e6 {1-0 (25) Bailey,M (2246)-Jordan,M (1864) ICCF email 2021}) 19. Bf3 $1 $18 {[%emt 0:03:20][%cal Bg2f3,Bf3g4,Bg4f5][%mdl 32]} ({Not} 19. Ne7+ Kh8 20. Kh1 (20. Nxc8 $2 Qc5+ 21. Kh1 Nf2+ $19) 20... Qc5 21. Rxd7 Nf2+ 22. Kg1 Ng4+ 23. Kh1 Nf2+ 24. Kg1 Ng4+ 25. Kh1 $11) 19... Ndf6 {[%emt 0:07:17]} 20. Qe2 {[%emt 0:00:18]} g6 $2 {[%emt 0:22:46]} (20... Qc5+ $2 21. Kg2 $18) (20... h5) 21. Bxg4 {[%emt 0:02:50] Strongly threatening Nd5.} gxf5 {[%emt 0:00:05]} 22. Bxf5 {[%emt 0:00:30] aiming for Nd5.} Rcd8 {[%emt 0:00:12] Prevents Nd5.} (22... Kg7 {is a better defense.} 23. fxe5 Qxe5 24. Bxc8 Rxc8) 23. Nd5 {[%emt 0:01:05] White is clearly winning.} Qd6 {[%emt 0:00:05]} 24. Nxf6+ {[%emt 0:01:46]} Qxf6 {[%emt 0:00:02]} 25. Rc7 {[%emt 0:07:44]} Rxd1+ {[%emt 0:02:49]} 26. Qxd1 {[%emt 0:00:01]} Ba8 {[%emt 0:00:09]} 27. Qg4+ {[%emt 0:00:20]} Kh8 {[%emt 0:11:06]} (27... Qg7 $142 28. Qxg7+ (28. fxe5 Qxg4 29. Bxg4 Bxe4 $16) 28... Kxg7 29. fxe5 h6) 28. Qh5 {[%emt 0:00:13][%csl Gf5][%cal Rh5h7]} h6 {[%emt 0:00:27]} 29. fxe5 {[%emt 0:00:07]} Qg7 {[%emt 0:00:03]} 30. Kg2 {[%emt 0:00:41]} Kg8 {[%emt 0:00:43]} 31. Kh3 {[%emt 0:00:50] Weighted Error Value: White=0.08 (flawless) /Black=0.50} 1-0